bitfinex/quotes_BTCUSD_20251120
["timestamp","ask_amount","ask_price","bid_price","bid_amount"]
[1763651701744,0.0038,90451.0,90450.0,0.23295663]
[1763651701943,0.0038,90451.0,90435.0,0.24713057]
[1763651702086,0.0038,90451.0,90435.0,0.02597971]
[1763651702295,0.0038,90451.0,90422.0,0.01105925]
[1763651702296,0.01105644,90445.0,90422.0,0.01105925]
[1763651702499,0.01105644,90445.0,90430.0,0.01105827]
[1763651702727,0.22115522,90435.0,90420.0,0.2322492]
[1763651702925,0.0110568,90442.0,90430.0,0.01105827]
[1763651702926,0.2211372,90442.0,90430.0,0.01105827]
[1763651703129,0.22113969,90441.0,90427.0,0.22117213]
[1763651703359,0.01105632,90446.0,90428.0,0.05750551]
[1763651703562,0.01105632,90446.0,90425.0,0.01105888]
[1763651703563,0.0175,90444.0,90425.0,0.23223534]
[1763651703892,0.0175,90444.0,90423.0,0.01105913]
[1763651703893,0.5731661,90440.0,90423.0,0.01105913]
[1763651704087,0.5731661,90440.0,90417.0,0.01105986]
[1763651704088,0.00875,90424.0,90417.0,0.01105986]
[1763651704284,0.00875,90424.0,90421.0,0.23224558]
[1763651704492,0.0038,90431.0,90430.0,0.22116554]
[1763651704715,0.01105546,90453.0,90430.0,0.22116554]
[1763651704716,0.0175,90467.0,90442.0,0.0110568]
[1763651704915,0.5731661,90470.0,90430.0,0.04447028]
[1763651704916,0.00875,90461.0,90444.0,0.02757684]
[1763651705053,0.00875,90461.0,90451.0,0.0110557]
[1763651705261,0.0038,90462.0,90460.0,0.22109094]
[1763651705465,0.0038,90462.0,90460.0,0.23761122]
[1763651705671,0.00810983,90490.0,90460.0,0.23761122]
[1763651705672,0.0038,90487.0,90474.0,0.01105289]
[1763651705876,0.23609292,90487.0,90460.0,0.02869028]
[1763651706085,0.22105287,90477.0,90462.0,0.01105436]
[1763651706287,0.02763163,90476.0,90460.0,0.0110546]
[1763651706576,0.5731661,90470.0,90446.0,0.00023772]
[1763651706762,0.02763377,90469.0,90453.0,0.01105546]
[1763651706960,0.22107363,90468.0,90450.0,0.22111516]
[1763651707189,0.22106046,90473.0,90460.0,0.22109121]
[1763651707403,0.79423587,90470.0,90457.0,0.01105497]
[1763651707644,0.79423587,90470.0,90452.0,0.01105558]
[1763651707645,0.00875,90457.0,90445.0,0.01105644]
[1763651707849,0.0038,90456.0,90450.0,0.2211159]
[1763651708045,0.01105534,90454.0,90431.0,0.01105815]
[1763651708247,0.2211077,90454.0,90439.0,0.01105717]
[1763651708495,0.02032028,90456.0,90444.0,0.01105656]
[1763651708496,0.0175,90453.0,90444.0,0.01105656]
[1763651708698,0.22110686,90454.0,90436.0,0.01105754]
[1763651708898,0.01523,90444.0,90438.0,0.01105729]
[1763651709099,0.0038,90443.0,90439.0,0.01105717]
[1763651709868,0.0038,90443.0,90435.0,0.23221097]
[1763651710055,0.0038,90443.0,90435.0,0.01105766]
[1763651710256,0.0038,90443.0,90440.0,0.01105705]
[1763651710399,0.00875,90457.0,90447.0,0.01105619]
[1763651710601,0.01105534,90454.0,90434.0,0.22115366]
[1763651710878,0.01523,90446.0,90442.0,0.0110568]
[1763651711002,0.01523,90446.0,90439.0,0.01105717]
[1763651711207,0.01523,90446.0,90441.0,0.01105693]
[1763651711523,0.01523,90446.0,90443.0,0.01105668]
[1763651711917,0.00875,90457.0,90436.0,0.01105754]
[1763651711918,0.0038,90458.0,90450.0,0.01105583]
[1763651712051,0.0038,90458.0,90441.0,0.01105693]
[1763651712052,0.0038,90457.0,90441.0,0.01105693]
[1763651712233,0.22110992,90453.0,90437.0,0.01105742]
[1763651712438,0.02763896,90452.0,90439.0,0.01105717]
[1763651712697,0.01105522,90455.0,90436.0,0.01105754]
[1763651712894,0.02763774,90456.0,90446.0,0.01105632]
[1763651713094,0.22111075,90453.0,90443.0,0.01105668]
[1763651713238,0.02763896,90452.0,90443.0,0.23218955]
[1763651713461,0.02763896,90452.0,90445.0,0.01105644]
[1763651713665,0.02763896,90452.0,90440.0,0.23219761]
[1763651713887,0.02763896,90452.0,90441.0,0.01105693]
[1763651714085,0.02763896,90452.0,90426.0,0.01652028]
[1763651714300,0.2211195,90449.0,90440.0,0.01105705]
[1763651714495,0.02241124,90448.0,90439.0,0.23220012]
[1763651714725,0.02241124,90448.0,90444.0,0.22112964]
[1763651714925,0.02763835,90454.0,90445.0,0.01105644]
[1763651715129,0.02763835,90454.0,90446.0,0.01105632]
[1763651715331,0.02763835,90454.0,90448.0,0.01105607]
[1763651715538,0.01888644,90453.0,90450.0,0.01105583]
[1763651715733,0.01538295,90456.0,90453.0,0.22110651]
[1763651715930,0.0038,90455.0,90449.0,0.01105595]
[1763651716135,0.22105309,90476.0,90459.0,0.01105473]
[1763651716355,0.01105412,90464.0,90448.0,0.01105607]
[1763651716531,0.01105412,90464.0,90449.0,0.01105595]
[1763651716532,0.22108993,90461.0,90449.0,0.01105595]
[1763651716731,0.22110853,90454.0,90441.0,0.01652028]
[1763651716931,0.60080262,90460.0,90444.0,0.01105656]
[1763651716932,0.02763866,90453.0,90444.0,0.01105656]
[1763651717146,0.02763866,90453.0,90425.0,0.02305]
[1763651717147,0.0038,90452.0,90442.0,0.22113562]
[1763651717349,0.03143896,90452.0,90444.0,0.01105656]
[1763651717554,0.03143896,90452.0,90419.0,0.76538321]
[1763651717762,0.0110557,90451.0,90435.0,0.01105766]
[1763651717956,0.01105668,90443.0,90430.0,0.01105827]
[1763651718249,0.02763988,90449.0,90439.0,0.22114352]
[1763651718469,0.5731661,90450.0,90439.0,0.01105717]
[1763651718693,0.02763988,90449.0,90441.0,0.01105693]
[1763651718928,0.22112421,90447.0,90438.0,0.23220217]
[1763651719136,0.02855363,90468.0,90440.0,0.01652028]
[1763651719348,0.02855363,90468.0,90453.0,0.22110894]
[1763651719349,0.02763591,90462.0,90453.0,0.22110894]
[1763651719554,0.01105179,90483.0,90469.0,0.01105351]
[1763651719770,0.01105179,90483.0,90466.0,0.01105387]
[1763651719771,0.0291637,90482.0,90480.0,0.22104241]
[1763651719972,0.0291637,90482.0,90471.0,0.22106494]
[1763651719973,0.0038,90481.0,90471.0,0.22106494]
[1763651720211,0.02763041,90480.0,90469.0,0.01105351]
[1763651720412,0.22105638,90475.0,90462.0,0.01105436]
[1763651720679,0.01105253,90477.0,90466.0,0.01105387]
[1763651720680,0.5731661,90472.0,90466.0,0.01105387]
[1763651720888,0.01105448,90461.0,90446.0,0.01105632]
[1763651721107,0.01105399,90465.0,90453.0,0.01105546]
[1763651721108,0.03143652,90460.0,90453.0,0.01105546]
[1763651721325,0.03143652,90460.0,90449.0,0.23217258]
[1763651721496,0.25253052,90460.0,90448.0,0.22112064]
[1763651721749,0.22111958,90449.0,90437.0,0.23220427]
[1763651721943,0.00875,90447.0,90439.0,0.01105717]
[1763651722062,0.00875,90447.0,90445.0,0.18512832]
[1763651722265,0.00875,90447.0,90438.0,0.01105729]
[1763651722266,0.01523,90440.0,90427.0,0.01105864]
[1763651722485,0.01523,90440.0,90420.0,0.0110595]
[1763651722486,0.01105742,90437.0,90420.0,0.0110595]
[1763651722689,0.0038,90436.0,90433.0,0.01105791]
[1763651722899,0.0038,90436.0,90427.0,0.01105864]
[1763651723165,0.0038,90436.0,90430.0,0.23222246]
[1763651723389,0.0038,90436.0,90433.0,0.23221358]
[1763651723615,0.0038,90436.0,90434.0,0.22115536]
[1763651723840,0.0038,90436.0,90430.0,0.01105827]
[1763651723841,0.0038,90436.0,90426.0,0.01105876]
[1763651724049,0.0038,90436.0,90433.0,0.01105791]
[1763651724274,0.0038,90436.0,90430.0,0.2322236]
[1763651724471,0.0038,90436.0,90433.0,0.01105791]
[1763651724878,0.0038,90436.0,90434.0,0.22115576]
[1763651725085,0.0038,90436.0,90430.0,0.01105827]
[1763651725086,0.0038,90436.0,90430.0,0.23222334]
[1763651725293,0.0038,90436.0,90433.0,0.23221521]
[1763651725501,0.0038,90436.0,90407.0,0.07843181]
[1763651725502,0.01485754,90436.0,90420.0,0.0110595]
[1763651725704,0.0038,90436.0,90428.0,0.01105852]
[1763651725908,0.0038,90436.0,90432.0,0.01105803]
[1763651726118,0.0038,90436.0,90433.0,0.23221571]
[1763651726325,0.0038,90436.0,90428.0,0.23222743]
[1763651726597,0.01523,90434.0,90425.0,0.01105888]
[1763651726815,0.0038,90436.0,90431.0,0.01105815]
[1763651727536,0.0038,90436.0,90432.0,0.01105803]
[1763651727714,0.0038,90436.0,90431.0,0.01105815]
[1763651727961,0.0038,90436.0,90432.0,0.01105803]
[1763651728168,0.0038,90436.0,90427.0,0.2322299]
[1763651728169,0.0038,90436.0,90430.0,0.00023777]
[1763651728391,0.0038,90436.0,90434.0,0.22115543]
[1763651728595,0.0038,90436.0,90433.0,0.01105791]
[1763651728795,0.0038,90436.0,90430.0,0.00023777]
[1763651728995,0.22495229,90436.0,90430.0,0.00023777]
[1763651729326,0.0038,90436.0,90426.0,0.01105876]
[1763651729531,0.0038,90436.0,90431.0,0.23222087]
[1763651729754,0.0038,90436.0,90429.0,0.01105839]
[1763651729965,0.0038,90436.0,90432.0,0.01105803]
[1763651730165,0.02764294,90439.0,90432.0,0.01105803]
[1763651730166,0.0038,90435.0,90433.0,0.01105791]
[1763651730365,0.0038,90435.0,90433.0,0.23221398]
[1763651730948,0.00875,90447.0,90436.0,0.01105754]
[1763651731153,0.0314408,90446.0,90438.0,0.01105729]
[1763651731364,0.0314408,90446.0,90436.0,0.01105754]
[1763651731586,0.22114105,90441.0,90430.0,0.01105827]
[1763651731754,0.02764263,90440.0,90435.0,0.22115324]
[1763651731951,0.2211351,90443.0,90434.0,0.23221322]
[1763651732167,0.01105693,90441.0,90429.0,0.01105839]
[1763651732346,0.01485632,90446.0,90423.0,0.01105913]
[1763651732347,0.23684576,90435.0,90423.0,0.01105913]
[1763651732558,0.23684576,90435.0,90412.0,0.01652028]
[1763651732559,0.0038,90434.0,90428.0,0.22116997]
[1763651732779,0.0038,90434.0,90431.0,0.01105815]
[1763651732984,0.0038,90434.0,90405.0,0.07843181]
[1763651732985,0.0110595,90420.0,90405.0,0.07843181]
[1763651733183,0.01105913,90423.0,90404.0,0.01106145]
[1763651733184,0.02444,90414.0,90404.0,0.01106145]
[1763651733438,0.02444,90414.0,90409.0,0.02084594]
[1763651733439,0.04194,90414.0,90409.0,0.02084594]
[1763651733648,0.00875,90414.0,90409.0,0.0097851]
[1763651733821,0.04194,90414.0,90409.0,0.0097851]
[1763651734034,0.05846028,90414.0,90409.0,0.0097851]
[1763651734910,0.38146028,90414.0,90409.0,0.0097851]
[1763651735188,2.45372881,90414.0,90409.0,0.0097851]
[1763651735384,2.45472881,90414.0,90409.0,0.0097851]
[1763651735553,0.45752881,90414.0,90409.0,0.0097851]
[1763651735901,2.54237242,90414.0,90409.0,0.0097851]
[1763651736099,2.54057242,90414.0,90409.0,0.0097851]
[1763651736335,0.40742632,90414.0,90409.0,0.0097851]
[1763651736462,0.23692649,90401.0,90400.0,0.0044251]
[1763651736675,0.24072649,90401.0,90400.0,0.0044251]
[1763651736878,0.25822649,90401.0,90400.0,0.0044251]
[1763651737264,0.58122649,90401.0,90400.0,0.0044251]
[1763651737896,0.63332898,90401.0,90400.0,0.0044251]
[1763651738299,0.58122649,90401.0,90400.0,0.0044251]
[1763651739012,0.58222649,90401.0,90400.0,0.0044251]
[1763651739175,0.58122649,90401.0,90400.0,0.0044251]
[1763651739435,0.58122649,90401.0,90400.0,0.00531709]
[1763651739641,0.58322649,90401.0,90400.0,0.00531709]
[1763651740071,0.57942649,90401.0,90400.0,0.00531709]
[1763651740273,0.58322649,90401.0,90400.0,0.00531709]
[1763651740478,0.63532898,90401.0,90400.0,0.00531709]
[1763651740617,0.54430013,90375.0,90370.0,0.0002]
[1763651740819,0.22133932,90359.0,90358.0,0.001106]
[1763651741248,0.22513932,90359.0,90358.0,0.001106]
[1763651741984,0.0038,90359.0,90358.0,0.001106]
[1763651742869,0.001,90359.0,90358.0,0.001106]
[1763651743076,0.0048,90359.0,90358.0,0.001106]
[1763651743292,0.001,90359.0,90358.0,0.001106]
[1763651743486,0.0048,90359.0,90358.0,0.001106]
[1763651743828,0.001,90359.0,90353.0,0.0071737]
[1763651744032,0.0038,90358.0,90356.0,0.01106733]
[1763651744350,0.22134912,90355.0,90344.0,0.0110688]
[1763651744553,0.22136252,90350.0,90340.0,0.01106929]
[1763651744947,0.22136252,90350.0,90339.0,0.01106941]
[1763651744948,0.2213266,90365.0,90354.0,0.22135041]
[1763651745144,0.22133091,90363.0,90356.0,0.01106733]
[1763651745359,0.0038,90364.0,90358.0,0.01106708]
[1763651745721,0.0038,90364.0,90360.0,0.01106684]
[1763651746003,0.22131236,90371.0,90356.0,0.01106733]
[1763651746150,0.01486561,90370.0,90355.0,0.02304745]
[1763651746352,0.01486561,90370.0,90356.0,0.01106733]
[1763651746353,0.01106586,90368.0,90356.0,0.01106733]
[1763651746553,0.22134255,90358.0,90350.0,0.2324284]
[1763651746785,0.0038,90357.0,90352.0,0.01106782]
[1763651746998,0.0110661,90366.0,90351.0,0.23267943]
[1763651746999,0.01106378,90385.0,90362.0,0.01106659]
[1763651747204,0.0038,90374.0,90372.0,0.22130585]
[1763651747404,0.0038,90374.0,90365.0,0.01106623]
[1763651747405,0.01107015,90333.0,90320.0,0.0017]
[1763651747607,0.72090962,90350.0,90333.0,0.01107015]
[1763651747810,0.22134177,90358.0,90340.0,0.01106929]
[1763651748020,0.0110661,90366.0,90342.0,0.01106904]
[1763651748021,0.001,90364.0,90342.0,0.01106904]
[1763651748191,0.0038,90357.0,90345.0,0.01106868]
[1763651748391,0.0038,90356.0,90347.0,0.01106843]
[1763651748590,0.02766466,90368.0,90349.0,0.01106819]
[1763651748591,0.0038,90355.0,90349.0,0.01106819]
[1763651748949,0.0038,90355.0,90339.0,0.02401]
[1763651748950,0.0038,90354.0,90338.0,0.01106953]
[1763651749072,0.0038,90353.0,90342.0,0.01106904]
[1763651749276,0.0038,90353.0,90341.0,0.01106917]
[1763651749277,0.22136329,90350.0,90341.0,0.22138137]
[1763651749490,0.0038,90353.0,90348.0,0.01106831]
[1763651749697,0.0038,90353.0,90344.0,0.23244318]
[1763651749914,0.0038,90353.0,90342.0,0.01106904]
[1763651750361,0.22135647,90352.0,90337.0,0.01106966]
[1763651750581,0.22138221,90342.0,90336.0,0.01106978]
[1763651750788,0.0038,90353.0,90344.0,0.22137415]
[1763651750996,0.0038,90353.0,90317.0,0.33216321]
[1763651750997,0.0038,90353.0,90332.0,0.01507953]
[1763651751216,0.0038,90353.0,90348.0,0.01106831]
[1763651751430,0.0255133,90358.0,90355.0,0.01106745]
[1763651751693,0.01142846,90405.0,90382.0,0.01106414]
[1763651751917,0.01142846,90405.0,90357.0,0.02791]
[1763651751918,0.22124628,90397.0,90392.0,0.00023793]
[1763651752151,0.01652028,90398.0,90392.0,0.00023793]
[1763651752152,0.22125546,90394.0,90392.0,0.00023793]
[1763651752372,0.22124535,90398.0,90392.0,0.00023793]
[1763651752590,0.02017379,90397.0,90392.0,0.00023793]
[1763651752791,0.02059045,90396.0,90392.0,0.00017826]
[1763651753005,0.0038,90395.0,90392.0,0.00017826]
[1763651753219,0.24130302,90394.0,90392.0,0.00017826]
[1763651753421,0.22125541,90394.0,90392.0,0.00017826]
[1763651753626,0.02422032,90394.0,90392.0,0.00017826]
[1763651753859,0.0110606,90411.0,90399.0,0.01106206]
[1763651754076,0.0038,90410.0,90400.0,0.2322999]
[1763651754280,0.72090962,90420.0,90399.0,0.01106206]
[1763651754281,0.22119818,90417.0,90407.0,0.01106109]
[1763651754504,0.22119818,90417.0,90399.0,0.01198]
[1763651754505,0.02032028,90416.0,90399.0,0.01198]
[1763651754730,0.02032028,90416.0,90392.0,0.00017826]
[1763651754731,0.22124234,90399.0,90392.0,0.00017826]
[1763651754966,0.22504449,90398.0,90393.0,0.0110628]
[1763651755188,0.22125497,90394.0,90392.0,0.00017826]
[1763651755410,0.01106096,90408.0,90393.0,0.0110628]
[1763651755622,0.01206072,90410.0,90395.0,0.01106255]
[1763651755844,0.22123829,90401.0,90395.0,0.01106255]
[1763651756058,0.02765486,90400.0,90398.0,0.22124373]
[1763651756278,0.02375306,90411.0,90406.0,0.01106121]
[1763651756502,0.0314518,90410.0,90394.0,0.01106268]
[1763651756736,0.22123965,90400.0,90392.0,0.01124118]
[1763651756954,0.02758198,90402.0,90396.0,0.01106243]
[1763651756955,0.03145517,90399.0,90396.0,0.01106243]
[1763651757175,0.0497448,90435.0,90401.0,0.01593]
[1763651757388,0.22120434,90415.0,90407.0,0.22122076]
[1763651757626,0.01652028,90435.0,90421.0,0.01105937]
[1763651757871,0.01105913,90423.0,90414.0,0.01198]
[1763651758138,0.01105913,90423.0,90387.0,0.01652028]
[1763651758139,0.01105974,90418.0,90391.0,0.00588595]
[1763651758343,0.01405699,90417.0,90410.0,0.01106072]
[1763651758541,0.0038,90416.0,90413.0,0.01106035]
[1763651758749,0.0038,90416.0,90412.0,0.22120957]
[1763651758952,0.0038,90416.0,90410.0,0.01106072]
[1763651759203,0.22121202,90411.0,90400.0,0.01106194]
[1763651759405,0.22121202,90411.0,90378.0,0.01198]
[1763651759406,0.01106231,90397.0,90381.0,0.01106427]
[1763651759607,0.0038,90396.0,90385.0,0.22127533]
[1763651759808,0.03145609,90396.0,90393.0,0.0110628]
[1763651760034,0.25270595,90396.0,90391.0,0.01106304]
[1763651760228,0.02765639,90395.0,90393.0,0.2212553]
[1763651760462,0.0038,90396.0,90390.0,0.01106317]
[1763651760661,0.01106304,90391.0,90382.0,0.01106414]
[1763651760862,0.01106304,90391.0,90384.0,0.22127607]
[1763651760863,0.22126406,90390.0,90384.0,0.22127607]
[1763651761135,0.02765823,90389.0,90381.0,0.01106427]
[1763651761413,0.02765823,90389.0,90378.0,0.01198]
[1763651761414,0.01106366,90386.0,90378.0,0.01198]
[1763651761615,0.05026459,90385.0,90373.0,0.01106525]
[1763651761852,0.03145976,90384.0,90376.0,0.23236082]
[1763651762086,0.02765976,90384.0,90382.0,0.22128223]
[1763651762284,0.02765517,90399.0,90392.0,0.01106292]
[1763651762533,0.0110628,90393.0,90373.0,0.01106525]
[1763651762726,0.0038,90398.0,90373.0,0.01106525]
[1763651762727,0.01652028,90386.0,90380.0,0.01106439]
[1763651762940,0.22124212,90399.0,90393.0,0.22125586]
[1763651763157,0.02387974,90398.0,90395.0,0.01106255]
[1763651763356,0.02007974,90397.0,90393.0,0.0110628]
[1763651763504,0.01652028,90400.0,90397.0,0.2323075]
[1763651763709,0.0038,90396.0,90394.0,0.01106268]
[1763651763916,0.0038,90396.0,90393.0,0.23231832]
[1763651764124,0.0038,90396.0,90394.0,0.22125291]
[1763651764494,0.01106145,90404.0,90378.0,0.01158]
[1763651764495,0.72090962,90420.0,90401.0,0.01106182]
[1763651764692,0.0239104,90413.0,90411.0,0.22121116]
[1763651764891,0.01105864,90427.0,90419.0,0.22119191]
[1763651765100,0.02391489,90426.0,90423.0,0.23224079]
[1763651765307,0.0038,90426.0,90400.0,0.01158]
[1763651765761,0.02764538,90431.0,90418.0,0.01105974]
[1763651765966,0.02764538,90431.0,90423.0,0.01105913]
[1763651766166,0.02764569,90430.0,90427.0,0.01105864]
[1763651766381,0.00153514,90428.0,90427.0,0.01105864]
[1763651766588,0.00153514,90428.0,90425.0,0.01105888]
[1763651766808,0.00153514,90428.0,90427.0,0.23656287]
[1763651767030,0.08482692,90476.0,90465.0,0.01105399]
[1763651767286,0.08482692,90476.0,90452.0,0.22111008]
[1763651767287,0.22108878,90462.0,90453.0,0.01105546]
[1763651767484,0.22109849,90458.0,90449.0,0.01105595]
[1763651767654,0.02763744,90457.0,90455.0,0.22110263]
[1763651767870,0.03143621,90461.0,90456.0,0.01105509]
[1763651768183,0.03143621,90461.0,90459.0,0.22109237]
[1763651768184,0.0038,90461.0,90459.0,0.22109237]
[1763651768386,0.03868599,90472.0,90459.0,0.01105473]
[1763651768566,0.22108486,90463.0,90453.0,0.22110767]
[1763651768765,0.02763591,90462.0,90452.0,0.01105558]
[1763651768989,0.01105399,90465.0,90453.0,0.01105546]
[1763651769191,0.0038,90471.0,90453.0,0.01105546]
[1763651769192,0.0276353,90464.0,90459.0,0.01105473]
[1763651769369,0.22109103,90461.0,90457.0,0.01105497]
[1763651769712,0.01105509,90456.0,90436.0,0.01105754]
[1763651769868,0.22111925,90449.0,90443.0,0.22113347]
[1763651770069,0.03144019,90448.0,90444.0,0.01105656]
[1763651770267,0.03144019,90448.0,90445.0,0.01105644]
[1763651770475,0.02764049,90447.0,90433.0,0.01105791]
[1763651770689,0.02764049,90447.0,90407.0,0.0038]
[1763651770690,0.02764049,90447.0,90444.0,0.22112994]
[1763651770889,0.0038,90448.0,90442.0,0.23219081]
[1763651771090,0.0038,90448.0,90431.0,0.01105815]
[1763651771091,0.22114315,90440.0,90431.0,0.01105815]
[1763651771460,0.24878753,90439.0,90434.0,0.22115552]
[1763651771639,0.24878753,90439.0,90412.0,0.02359]
[1763651771640,0.01105742,90437.0,90425.0,0.01105888]
[1763651771922,0.01105839,90429.0,90419.0,0.01105962]
[1763651772119,0.0276463,90428.0,90427.0,0.2211714]
[1763651772325,0.05210249,90468.0,90427.0,0.2211714]
[1763651772326,0.02763988,90449.0,90439.0,0.01105717]
[1763651772537,0.0038,90448.0,90445.0,0.01105644]
[1763651772739,0.03144019,90448.0,90436.0,0.01105754]
[1763651772942,0.0038,90448.0,90445.0,0.01105644]
[1763651773190,0.22111152,90453.0,90448.0,0.23217553]
[1763651773394,0.22112776,90446.0,90440.0,0.01105705]
[1763651773569,0.0276411,90445.0,90444.0,0.01105656]
[1763651773707,0.0038,90445.0,90440.0,0.01105705]
[1763651773921,0.0038,90445.0,90429.0,0.01158]
[1763651774134,0.001,90449.0,90448.0,0.22112152]
[1763651774345,0.001,90449.0,90448.0,0.28559303]
[1763651774555,0.001,90449.0,90448.0,0.30918303]
[1763651774774,0.01105082,90491.0,90478.0,0.01105241]
[1763651774980,0.0338977,90490.0,90476.0,0.01105265]
[1763651775180,0.02284676,90490.0,90487.0,0.01105131]
[1763651775386,0.22102506,90488.0,90480.0,0.01105216]
[1763651775596,0.01104886,90507.0,90493.0,0.01105057]
[1763651775800,0.01104984,90499.0,90487.0,0.01105131]
[1763651776001,0.0110507,90492.0,90479.0,0.01105228]
[1763651776213,0.22102133,90489.0,90481.0,0.01105204]
[1763651776410,0.01105302,90473.0,90460.0,0.0110546]
[1763651776623,0.01105338,90470.0,90456.0,0.01105509]
[1763651776833,0.02763377,90469.0,90461.0,0.22108862]
[1763651777072,0.22107508,90467.0,90457.0,0.02263497]
[1763651777271,0.02250919,90466.0,90457.0,0.24373434]
[1763651777516,0.02763499,90465.0,90461.0,0.22108894]
[1763651777865,0.0120507,90492.0,90471.0,0.01105326]
[1763651778075,0.22104287,90481.0,90472.0,0.01105314]
[1763651778283,0.2210483,90478.0,90474.0,0.01105289]
[1763651778501,0.02223126,90480.0,90466.0,0.01158]
[1763651778502,0.72130962,90510.0,90489.0,0.01105106]
[1763651778711,0.01652028,90490.0,90466.0,0.01158]
[1763651778920,0.01105192,90482.0,90469.0,0.01105351]
[1763651779125,0.01105302,90473.0,90460.0,0.0110546]
[1763651779276,0.02762766,90489.0,90465.0,0.2321331]
[1763651779277,0.22106672,90471.0,90465.0,0.2321331]
[1763651779611,0.0038,90472.0,90469.0,0.22106889]
[1763651779815,0.0038,90472.0,90470.0,0.2210668]
[1763651780225,0.22486337,90472.0,90469.0,0.01105351]
[1763651780433,0.0038,90472.0,90470.0,0.22106648]
[1763651780835,0.00127742,90471.0,90470.0,0.22106648]
[1763651781046,0.00127742,90471.0,90470.0,0.22106775]
[1763651781825,0.00127742,90471.0,90470.0,0.35179343]
[1763651782027,0.00127742,90471.0,90470.0,0.09174568]
[1763651782227,0.00127742,90471.0,90466.0,0.01105387]
[1763651782432,0.01105351,90469.0,90459.0,0.01105473]
[1763651782637,0.01485302,90473.0,90455.0,0.01105522]
[1763651782638,0.02763408,90468.0,90455.0,0.01105522]
[1763651782817,0.02763408,90468.0,90461.0,0.01105448]
[1763651783033,0.22109708,90458.0,90455.0,0.01105522]
[1763651783233,0.01105265,90476.0,90466.0,0.01105387]
[1763651783433,0.22101198,90493.0,90479.0,0.01105228]
[1763651783640,0.0038,90484.0,90482.0,0.22103813]
[1763651783869,0.0038,90484.0,90470.0,0.01105338]
[1763651784069,0.01105253,90477.0,90467.0,0.01105375]
[1763651784268,0.02763163,90476.0,90470.0,0.01105338]
[1763651784476,0.0038,90484.0,90464.0,0.01105412]
[1763651784477,0.01105277,90475.0,90464.0,0.01105412]
[1763651784678,0.03868513,90474.0,90459.0,0.01105473]
[1763651784888,0.02763224,90474.0,90460.0,0.0110546]
[1763651785100,0.22108511,90463.0,90460.0,0.0110546]
[1763651785387,0.22108511,90463.0,90452.0,0.01105558]
[1763651785388,0.03143591,90462.0,90454.0,0.01105534]
[1763651785603,0.03143591,90462.0,90434.0,0.02359]
[1763651785604,0.01105558,90452.0,90434.0,0.02359]
[1763651785817,0.01105717,90439.0,90426.0,0.01105876]
[1763651786037,0.22115381,90435.0,90429.0,0.22116721]
[1763651786235,0.22117251,90428.0,90423.0,0.01105913]
[1763651786440,0.0038,90438.0,90430.0,0.01105827]
[1763651786669,0.0038,90438.0,90436.0,0.22114935]
[1763651787096,0.0038,90438.0,90436.0,0.22114942]
[1763651787248,0.2211285,90446.0,90436.0,0.22114942]
[1763651787249,0.01105583,90450.0,90439.0,0.01105717]
[1763651787451,0.01652028,90462.0,90410.0,0.72090962]
[1763651787452,0.22113178,90444.0,90435.0,0.23221015]
[1763651787712,0.01105509,90456.0,90446.0,0.01105632]
[1763651787833,0.0110557,90451.0,90441.0,0.01105693]
[1763651788032,0.22113804,90442.0,90437.0,0.01105742]
[1763651788333,0.0038,90441.0,90432.0,0.01105803]
[1763651788549,0.0038,90441.0,90435.0,0.01105766]
[1763651788754,0.22114317,90440.0,90435.0,0.22115236]
[1763651788930,0.0038,90441.0,90437.0,0.01105742]
[1763651789190,0.0038,90441.0,90432.0,0.01105803]
[1763651789389,0.22115215,90436.0,90431.0,0.23221964]
[1763651789503,0.01105729,90438.0,90405.0,0.323]
[1763651789711,0.01105754,90436.0,90427.0,0.01105864]
[1763651789944,0.22115522,90435.0,90431.0,0.01105815]
[1763651790117,0.23220744,90437.0,90432.0,0.01105803]
[1763651790320,0.0038,90441.0,90433.0,0.01105791]
[1763651790536,0.01105607,90448.0,90440.0,0.01105705]
[1763651790739,0.22114752,90438.0,90429.0,0.01105839]
[1763651790944,0.22115148,90436.0,90433.0,0.01105791]
[1763651791204,0.22115148,90436.0,90430.0,0.22116489]
[1763651791205,0.22115229,90436.0,90430.0,0.22116489]
[1763651791401,0.0038,90437.0,90430.0,0.01105827]
[1763651791606,0.0038,90437.0,90431.0,0.01105815]
[1763651791840,0.0038,90437.0,90430.0,0.01105827]
[1763651792082,0.0038,90437.0,90429.0,0.23222496]
[1763651792083,0.0110595,90420.0,90409.0,0.01106084]
[1763651792256,0.0038,90419.0,90413.0,0.2322655]
[1763651792570,0.0038,90419.0,90417.0,0.2211967]
[1763651792862,0.0038,90419.0,90417.0,0.22119684]
[1763651793060,0.01105852,90428.0,90421.0,0.01105937]
[1763651793259,0.22117598,90426.0,90420.0,0.232248]
[1763651793489,0.0038,90427.0,90422.0,0.01105925]
[1763651793720,0.22119009,90420.0,90416.0,0.22119831]
[1763651793938,0.01105876,90426.0,90418.0,0.01105974]
[1763651794152,0.01105974,90418.0,90392.0,0.02609544]
[1763651794382,0.01106219,90398.0,90392.0,0.00153544]
[1763651794631,0.2212543,90394.0,90392.0,0.00153544]
[1763651794843,0.0038,90397.0,90394.0,0.01106268]
[1763651795048,0.0038,90397.0,90393.0,0.0110628]
[1763651795240,0.0038,90397.0,90392.0,0.00153544]
[1763651795575,0.0038,90397.0,90392.0,0.01259836]
[1763651795774,0.22125453,90394.0,90392.0,0.00153544]
[1763651796237,0.22125522,90394.0,90392.0,0.00153544]
[1763651796455,0.22125322,90395.0,90392.0,0.00153544]
[1763651796661,0.22125505,90394.0,90392.0,0.00153544]
[1763651797506,0.0038,90397.0,90394.0,0.01106268]
[1763651797704,0.0038,90397.0,90394.0,0.23231426]
[1763651797921,0.01106121,90406.0,90394.0,0.23231426]
[1763651797922,0.44224384,90448.0,90420.0,0.0110595]
[1763651798109,0.5,90460.0,90425.0,0.01105888]
[1763651798110,0.04170235,90428.0,90425.0,0.01105888]
[1763651798312,0.0038,90427.0,90410.0,0.02456]
[1763651798661,0.0038,90427.0,90426.0,0.22117532]
[1763651798849,0.0038,90427.0,90424.0,0.23223665]
[1763651799046,0.0038,90427.0,90425.0,0.22117694]
[1763651799387,0.001,90429.0,90428.0,0.22117043]
[1763651799593,0.0048,90429.0,90428.0,0.22117043]
[1763651799787,0.0048,90429.0,90428.0,0.23631043]
[1763651800037,0.00023775,90436.0,90435.0,0.22115331]
[1763651800258,0.00023775,90436.0,90435.0,0.24758331]
[1763651800482,0.00023775,90436.0,90435.0,0.36791753]
[1763651801091,0.00023775,90436.0,90435.0,0.27214331]
[1763651801869,0.22103348,90485.0,90480.0,0.01105216]
[1763651802070,0.02005543,90484.0,90483.0,0.01105179]
[1763651802303,0.0110507,90492.0,90482.0,0.01105192]
[1763651802304,0.22101568,90492.0,90482.0,0.01105192]